fUSD/lending_fUSD_20250525
["ID","MTS","AMOUNT","RATE_DAILY","PERIOD"]
[362323221,1748193039513,-353.01777257,0.00019315,2]
[362323223,1748193039522,-2500.0,0.00019338,2]
[362323225,1748193039531,-1000.0,0.00019338,2]
[362323228,1748193039541,-420.0,0.00019369,2]
[362323230,1748193039551,-420.0,0.00019369,2]
[362323231,1748193039559,-420.0,0.00019369,2]
[362323234,1748193039570,-420.0,0.00019369,2]
[362323236,1748193039579,-422.06450214,0.00019369,2]
[362323238,1748193039588,-420.0,0.00019369,2]
[362323240,1748193039597,-420.0,0.00019369,2]
[362323242,1748193039606,-420.0,0.00019369,2]
[362323244,1748193039615,-420.0,0.00019369,2]
[362323246,1748193039624,-420.0,0.00019369,2]
[362323248,1748193039633,-420.0,0.00019369,2]
[362323250,1748193039643,-420.0,0.00019369,2]
[362323252,1748193039652,-422.62455796,0.00019369,2]
[362323254,1748193039661,-420.0,0.00019369,2]
[362323256,1748193039671,-420.0,0.00019369,2]
[362323257,1748193039683,-420.0,0.00019369,2]
[362323259,1748193039692,-420.0,0.00019369,2]
[362323261,1748193039702,-420.0,0.00019369,2]
[362323263,1748193039712,-420.0,0.00019369,2]
[362323265,1748193039721,-420.0,0.00019369,2]
[362323267,1748193039730,-209.73614357,0.00019369,2]
[362323269,1748193039739,-420.0,0.00019369,2]
[362323271,1748193039749,-2370.59,0.00019369,2]
[362323273,1748193039758,-420.0,0.00019369,2]
[362323275,1748193039768,-1128.35,0.00019369,2]
[362323277,1748193039777,-420.0,0.00019369,2]
[362323279,1748193039786,-420.0,0.00019369,2]
[362323281,1748193039797,-420.0,0.00019369,2]
[362323283,1748193039806,-420.0,0.00019369,2]
[362323285,1748193039815,-420.0,0.00019369,2]
[362323287,1748193039826,-420.0,0.00019369,2]
[362323289,1748193039836,-266.50776842,0.00019369,2]
[362323291,1748193039845,-231.552314,0.00019369,2]
[362323293,1748193039855,-420.0,0.00019369,2]
[362323295,1748193039866,-420.0,0.00019369,2]
[362323297,1748193039876,-420.0,0.00019369,2]
[362323299,1748193039886,-420.0,0.00019369,2]
[362323301,1748193039894,-420.0,0.00019369,2]
[362323303,1748193039904,-420.0,0.00019369,2]
[362323305,1748193039915,-420.0,0.00019369,2]
[362323307,1748193039924,-420.0,0.00019369,2]
[362323309,1748193039933,-420.0,0.00019369,2]
[362323311,1748193039945,-420.0,0.00019369,2]
[362323313,1748193039955,-420.0,0.00019369,2]
[362323315,1748193039964,-420.0,0.00019369,2]
[362323316,1748193039973,-420.0,0.00019369,2]
[362323318,1748193039983,-420.0,0.00019369,2]
[362323321,1748193039993,-155.261559,0.00019369,2]
[362323323,1748193040002,-420.0,0.00019369,2]
[362323325,1748193040011,-420.0,0.00019369,2]
[362323327,1748193040021,-420.0,0.00019369,2]
[362323329,1748193040030,-420.0,0.00019369,2]
[362323331,1748193040040,-319.54826523,0.00019369,2]
[362323332,1748193040049,-353.01777257,0.0001937,2]
[362323335,1748193040059,-800.0,0.0001937,2]
[362323337,1748193040069,-632.0,0.0001937,2]
[362323339,1748193040079,-1463.0,0.0001937,2]
[362323341,1748193040089,-922.0,0.0001937,2]
[362323343,1748193040098,-586.0,0.0001937,2]
[362323344,1748193040109,-555.0,0.0001937,2]
[362323346,1748193040118,-1263.0,0.0001937,2]
[362323348,1748193040128,-353.01777257,0.00019452,2]
[362323350,1748193040137,-2071.56,0.00019458,2]
[362323352,1748193040146,-1500.0,0.00019468,2]
[362323354,1748193040156,-366.02909126,0.000195,2]
[362323356,1748193040165,-366.02909115,0.000195,2]
[362323358,1748193040174,-366.02909115,0.000195,2]
[362323360,1748193040183,-353.01777257,0.00019534,2]
[362323362,1748193040192,-693.3919763,0.00019547,2]
[362323364,1748193040201,-504.85155625,0.00019548,2]
[362323366,1748193040211,-1000.0,0.00019548,2]
[362323368,1748193040221,-1000.0,0.00019548,2]
[362323370,1748193040230,-458.083292,0.00019595,2]
[362323372,1748193040239,-497.981824,0.00019599,2]
[362323374,1748193040248,-1000.0,0.00019607,2]
[362323376,1748193040258,-353.01777257,0.00019616,2]
[362323378,1748193040267,-366.02909115,0.00019659,2]
[362323380,1748193040278,-353.01777257,0.00019699,2]
[362323382,1748193040287,-2541.10487944,0.000197,2]
[362323384,1748193040297,-4057.0,0.00019716,2]
[362323386,1748193040306,-6918.0,0.00019716,2]
[362323388,1748193040315,-154.0,0.00019716,2]
[362323390,1748193040326,-845.0,0.00019716,2]
[362323392,1748193040337,-881.0,0.00019716,2]
[362323394,1748193040349,-1000.0,0.00019725,2]
[362323396,1748193040357,-150.0,0.00019725,2]
[362323398,1748193040366,-150.0,0.00019725,2]
[362323400,1748193040375,-150.0,0.00019725,2]
[362323402,1748193040384,-150.0,0.00019726,2]
[362323404,1748193040393,-150.0,0.00019728,2]
[362323406,1748193040401,-1000.0,0.00019729,2]
[362323408,1748193040411,-150.0,0.0001973,2]
[362323410,1748193040421,-150.0,0.00019731,2]
[362323412,1748193040431,-150.0,0.00019732,2]
[362323414,1748193040441,-150.0,0.00019739,2]
[362323416,1748193040450,-150.0,0.00019739,2]
[362323418,1748193040464,-150.0,0.00019743,2]
[362323420,1748193040473,-150.0,0.00019746,2]
[362323422,1748193040486,-150.0,0.00019747,2]
[362323424,1748193040495,-205.74297023,0.00019748,2]
[362323426,1748193040505,-1836.07996185,0.00019748,2]
[362323428,1748193040515,-150.0,0.0001975,2]
[362323430,1748193040524,-150.0,0.00019751,2]
[362323431,1748193040533,-353.01777257,0.00019753,2]
[362323433,1748193040543,-150.0,0.00019754,2]
[362323435,1748193040552,-150.0,0.00019759,2]
[362323437,1748193040562,-150.0,0.0001976,2]
[362323439,1748193040573,-150.0,0.00019767,2]
[362323441,1748193040582,-150.0,0.0001977,2]
[362323443,1748193040591,-150.0,0.0001977,2]
[362323445,1748193040600,-150.0,0.00019771,2]
[362323447,1748193040610,-150.0,0.00019774,2]
[362323449,1748193040619,-150.0,0.00019775,2]
[362323451,1748193040629,-1000.0,0.00019778,2]
[362323453,1748193040638,-150.0,0.0001978,2]
[362323455,1748193040647,-150.0,0.00019781,2]
[362323457,1748193040657,-150.0,0.00019782,2]
[362323459,1748193040666,-150.0,0.00019786,2]
[362323461,1748193040675,-150.0,0.0001979,2]
[362323463,1748193040684,-150.0,0.00019792,2]
[362323465,1748193040694,-150.0,0.00019792,2]
[362323467,1748193040704,-174.33205416,0.00019797,2]
[362323469,1748193040713,-4618.03464338,0.00019797,2]
[362323471,1748193040722,-158.93892523,0.00019798,2]
[362323473,1748193040732,-150.0,0.00019806,2]
[362323475,1748193040741,-1000.0,0.00019808,2]
[362323477,1748193040750,-275.95977431,0.00019808,2]
[362323479,1748193040760,-4618.03464332,0.00019808,2]
[362323481,1748193040769,-1000.0,0.0001981,2]
[362323483,1748193040778,-1000.0,0.00019811,2]
[362323485,1748193040787,-150.0,0.00019811,2]
[362323488,1748193040797,-1000.0,0.00019812,2]
[362323490,1748193040806,-150.0,0.00019813,2]
[362323492,1748193040816,-150.0,0.00019814,2]
[362323495,1748193040827,-150.0,0.00019814,2]
[362323497,1748193040837,-150.0,0.00019815,2]
[362323499,1748193040846,-150.0,0.00019816,2]
[362323501,1748193040856,-150.0,0.00019818,2]
[362323503,1748193040868,-1000.0,0.00019819,2]
[362323505,1748193040877,-4618.03464332,0.0001982,2]
[362323507,1748193040886,-150.0,0.0001982,2]
[362323509,1748193040895,-150.0,0.00019825,2]
[362323511,1748193040906,-150.0,0.00019828,2]
[362323513,1748193040915,-150.0,0.00019828,2]
[362323515,1748193040925,-150.0,0.00019828,2]
[362323517,1748193040934,-150.0,0.00019829,2]
[362323519,1748193040944,-4618.03464332,0.00019831,2]
[362323521,1748193040954,-177.19685162,0.00019833,2]
[362323523,1748193040963,-353.01777257,0.00019836,2]
[362323525,1748193040973,-150.0,0.00019836,2]
[362323526,1748193040982,-150.0,0.00019837,2]
[362323528,1748193040991,-1000.0,0.00019839,2]
[362323530,1748193041000,-150.0,0.00019841,2]
[362323532,1748193041010,-150.0,0.00019841,2]
[362323534,1748193041019,-4618.03464332,0.00019843,2]
[362323536,1748193041029,-150.0,0.00019844,2]
[362323538,1748193041039,-150.0,0.00019847,2]
[362323540,1748193041049,-174.33205414,0.00019849,2]
[362323543,1748193041060,-1000.0,0.00019851,2]
[362323545,1748193041070,-150.0,0.00019852,2]
[362323547,1748193041079,-4618.03464332,0.00019854,2]
[362323549,1748193041088,-1000.0,0.00019856,2]
[362323550,1748193041097,-150.0,0.00019856,2]
[362323552,1748193041106,-150.0,0.00019856,2]
[362323554,1748193041115,-150.0,0.00019859,2]
[362323556,1748193041124,-4618.03464332,0.00019866,2]
[362323558,1748193041134,-150.0,0.00019866,2]
[362323560,1748193041143,-1000.0,0.00019872,2]
[362323562,1748193041152,-500.0,0.00019873,2]
[362323564,1748193041162,-507.04838419,0.00019873,2]
[362323566,1748193041171,-4618.03464332,0.00019877,2]
[362323568,1748193041180,-150.0,0.00019878,2]
[362323570,1748193041189,-261.8728931,0.00019882,2]
[362323572,1748193041199,-150.0,0.00019883,2]
[362323574,1748193041208,-150.0,0.00019886,2]
[362323576,1748193041218,-150.0,0.00019887,2]
[362323578,1748193041227,-150.0,0.00019888,2]
[362323580,1748193041237,-4618.03464332,0.00019889,2]
[362323582,1748193041246,-150.0,0.0001989,2]
[362323584,1748193041255,-150.0,0.00019891,2]
[362323586,1748193041265,-150.0,0.00019891,2]
[362323588,1748193041276,-8477.5382,0.00019893,2]
[362323590,1748193041286,-1000.0,0.00019893,2]
[362323592,1748193041295,-500.0,0.00019894,2]
[362323594,1748193041304,-858.73398214,0.00019894,2]
[362323596,1748193041313,-420.0,0.00019895,2]
[362323598,1748193041324,-420.0,0.00019895,2]
[362323600,1748193041333,-420.0,0.00019895,2]
[362323602,1748193041343,-420.0,0.00019895,2]
[362323604,1748193041352,-420.0,0.00019895,2]
[362323606,1748193041362,-420.0,0.00019895,2]
[362323608,1748193041371,-420.0,0.00019895,2]
[362323610,1748193041380,-420.0,0.00019895,2]
[362323612,1748193041389,-590.91,0.00019895,2]
[362323614,1748193041398,-420.0,0.00019895,2]
[362323616,1748193041408,-420.0,0.00019895,2]
[362323618,1748193041417,-420.0,0.00019895,2]
[362323620,1748193041427,-420.0,0.00019895,2]
[362323622,1748193041436,-177.10441233,0.00019895,2]
[362323624,1748193041446,-420.0,0.00019895,2]
[362323626,1748193041456,-420.0,0.00019895,2]
[362323628,1748193041465,-420.0,0.00019895,2]
[362323630,1748193041475,-420.0,0.00019895,2]
[362323632,1748193041484,-420.0,0.00019895,2]
[362323634,1748193041493,-382.88372894,0.00019895,2]
[362323636,1748193041502,-420.0,0.00019895,2]
[362323638,1748193041512,-723.12,0.00019895,2]
[362323640,1748193041521,-420.0,0.00019895,2]
[362323642,1748193041530,-420.0,0.00019895,2]
[362323644,1748193041539,-420.0,0.00019895,2]
[362323646,1748193041548,-331.05564191,0.00019895,2]
[362323648,1748193041557,-420.0,0.00019895,2]
[362323650,1748193041567,-420.0,0.00019895,2]
[362323652,1748193041577,-420.0,0.00019895,2]
[362323654,1748193041587,-420.0,0.00019895,2]
[362323656,1748193041596,-420.0,0.00019895,2]
[362323658,1748193041605,-420.0,0.00019895,2]
[362323660,1748193041615,-420.0,0.00019895,2]
[362323662,1748193041624,-420.0,0.00019895,2]
[362323664,1748193041633,-420.0,0.00019895,2]
[362323666,1748193041643,-420.0,0.00019895,2]
[362323668,1748193041652,-2403.2,0.00019895,2]
[362323670,1748193041662,-420.0,0.00019895,2]
[362323672,1748193041671,-458.08329201,0.00019896,2]
[362323674,1748193041680,-858.73398213,0.00019897,2]
[362323676,1748193041690,-420.0,0.00019897,2]
[362323678,1748193041699,-420.0,0.00019897,2]
[362323680,1748193041709,-385.84085052,0.00019897,2]
[362323681,1748193041718,-471.90918214,0.00019897,2]
[362323683,1748193041727,-420.0,0.00019897,2]
[362323685,1748193041736,-420.0,0.00019897,2]
[362323687,1748193041746,-420.0,0.00019897,2]
[362323689,1748193041757,-420.0,0.00019897,2]
[362323691,1748193041766,-435.88570733,0.00019897,2]
[362323692,1748193041775,-420.0,0.00019897,2]
[362323693,1748193041785,-420.0,0.00019897,2]
[362323694,1748193041795,-452.79627755,0.00019897,2]
[362323695,1748193041805,-420.0,0.00019897,2]
[362323696,1748193041814,-420.0,0.00019897,2]
[362323697,1748193041825,-536.70927918,0.00019897,2]
[362323698,1748193041834,-420.0,0.00019897,2]
[362323699,1748193041844,-420.0,0.00019897,2]
[362323700,1748193041854,-420.0,0.00019897,2]
[362323701,1748193041865,-426.60862792,0.00019897,2]
[362323702,1748193041877,-440.89450536,0.00019897,2]
[362323703,1748193041886,-214.6801448,0.00019897,2]
[362323704,1748193041895,-319.90778846,0.00019897,2]
[362323705,1748193041906,-420.0,0.00019897,2]
[362323707,1748193041915,-420.0,0.00019897,2]
[362323709,1748193041924,-420.0,0.00019897,2]
[362323711,1748193041933,-432.52124467,0.00019897,2]
[362323713,1748193041943,-558.34016873,0.00019897,2]
[362323714,1748193041953,-166.45013626,0.00019897,2]
[362323716,1748193041962,-420.0,0.00019897,2]
[362323718,1748193041972,-420.0,0.00019897,2]
[362323720,1748193041981,-420.0,0.00019897,2]
[362323722,1748193041991,-420.0,0.00019897,2]
[362323724,1748193042000,-420.0,0.00019897,2]
[362323726,1748193042010,-420.0,0.00019897,2]
[362323728,1748193042019,-354.87062839,0.00019897,2]
[362323730,1748193042029,-420.0,0.00019897,2]
[362323732,1748193042039,-420.0,0.00019897,2]
[362323734,1748193042048,-420.0,0.00019897,2]
[362323736,1748193042057,-420.0,0.00019897,2]
[362323738,1748193042066,-420.0,0.00019897,2]
[362323740,1748193042076,-420.0,0.00019897,2]
[362323742,1748193042086,-508.48792638,0.00019897,2]
[362323744,1748193042095,-389.42226546,0.00019897,2]
[362323746,1748193042104,-420.0,0.00019897,2]
[362323748,1748193042114,-420.0,0.00019897,2]
[362323750,1748193042123,-420.0,0.00019897,2]
[362323752,1748193042132,-557.94279715,0.00019897,2]
[362323754,1748193042141,-420.0,0.00019897,2]
[362323756,1748193042150,-420.0,0.00019897,2]
[362323758,1748193042160,-420.0,0.00019897,2]
[362323760,1748193042170,-420.0,0.00019897,2]
[362323762,1748193042179,-420.0,0.00019897,2]
[362323764,1748193042188,-420.0,0.00019897,2]
[362323766,1748193042197,-420.0,0.00019897,2]
[362323768,1748193042206,-420.0,0.00019897,2]
[362323770,1748193042215,-420.0,0.00019897,2]
[362323772,1748193042225,-2000.0,0.00019897,2]
[362323774,1748193042234,-420.0,0.00019897,2]
[362323776,1748193042243,-424.51874007,0.00019897,2]
[362323778,1748193042253,-420.0,0.00019897,2]
[362323780,1748193042262,-420.0,0.00019897,2]
[362323782,1748193042271,-420.0,0.00019897,2]
[362323784,1748193042282,-420.0,0.00019897,2]
[362323786,1748193042292,-420.0,0.00019897,2]
[362323788,1748193042301,-225.15797771,0.00019897,2]
[362323790,1748193042310,-420.0,0.00019897,2]
[362323792,1748193042319,-420.0,0.00019897,2]
[362323793,1748193042329,-420.0,0.00019897,2]
[362323795,1748193042338,-420.0,0.00019897,2]
[362323797,1748193042348,-420.0,0.00019897,2]
[362323799,1748193042357,-420.0,0.00019897,2]
[362323801,1748193042368,-420.0,0.00019897,2]
[362323803,1748193042377,-420.0,0.00019897,2]
[362323805,1748193042387,-420.0,0.00019897,2]
[362323807,1748193042395,-420.0,0.00019897,2]
[362323809,1748193042405,-420.0,0.00019897,2]
[362323811,1748193042414,-420.0,0.00019897,2]
[362323813,1748193042423,-286.49471126,0.00019897,2]
[362323815,1748193042433,-420.0,0.00019897,2]
[362323817,1748193042442,-420.0,0.00019897,2]
[362323819,1748193042452,-420.0,0.00019897,2]
[362323821,1748193042462,-420.0,0.00019897,2]
[362323823,1748193042471,-420.0,0.00019897,2]
[362323825,1748193042480,-420.0,0.00019897,2]
[362323827,1748193042489,-420.0,0.00019897,2]
[362323829,1748193042498,-420.0,0.00019897,2]
[362323831,1748193042507,-420.0,0.00019897,2]
[362323833,1748193042517,-42760.69337246,0.00019898,2]
[362323839,1748193042560,-4116.06230995,0.00019898,2]
[362323841,1748193042575,-365.2349616,0.00019898,2]
[362323844,1748193042587,-384.186,0.00019898,2]
[362323846,1748193042598,-2100.69529712,0.00019898,2]
[362323848,1748193042609,-6259.34335887,0.00019898,2]
[362323850,1748193042619,-27.43520863,0.00019898,2]
[362323875,1748193042848,-1925.34778109,0.0001791,2]
[362323877,1748193042860,-92.33221891,0.0001791,2]
[362323879,1748193042875,-420.0,0.00019369,2]
[362323881,1748193042885,-104.30299155,0.00019898,2]
[362323883,1748193042897,-1443.03299982,0.00019898,2]
[362323885,1748193042907,-858.73398213,0.00019899,2]
[362323887,1748193042916,-150.0,0.00019899,2]
[362323889,1748193042926,-202.82512079,0.000199,2]
[362323891,1748193042935,-293.02355234,0.000199,2]
[362323893,1748193042947,-174.33205414,0.000199,2]
[362323895,1748193042958,-4618.03464332,0.000199,2]
[362323897,1748193042968,-158.93892523,0.000199,2]
[362323899,1748193042977,-3889.28348099,0.000199,2]
[362323901,1748193042987,-1009.88500688,0.000199,2]
[362323903,1748193042997,-167.42129484,0.000199,2]
[362323905,1748193043006,-216.6305344,0.000199,2]
[362323907,1748193043016,-150.0,0.00019902,2]
[362323909,1748193043025,-2071.56,0.00019904,2]
[362323911,1748193043035,-150.0,0.00019904,2]
[362323913,1748193043044,-150.0,0.00019908,2]
[362323915,1748193043054,-150.0,0.0001991,2]
[362323917,1748193043063,-150.0,0.00019913,2]
[362323919,1748193043073,-16000.0,0.00019914,3]
[362323921,1748193043082,-150.0,0.00019915,2]
[362323923,1748193043092,-1000.0,0.00019918,2]
[362323925,1748193043102,-420.0,0.00019921,2]
[362323927,1748193043111,-420.0,0.00019921,2]
[362323948,1748193043300,-420.0,0.00019921,2]
[362323950,1748193043310,-420.0,0.00019921,2]
[362323952,1748193043320,-420.0,0.00019921,2]
[362323954,1748193043332,-420.0,0.00019921,2]
[362323956,1748193043341,-150.0,0.00019921,2]
[362323958,1748193043351,-420.0,0.00019921,2]
[362323960,1748193043360,-420.0,0.00019921,2]
[362323962,1748193043370,-420.0,0.00019921,2]
[362323964,1748193043380,-373.29240906,0.00019921,2]
[362323966,1748193043389,-420.0,0.00019921,2]
[362323968,1748193043398,-2370.59,0.00019921,2]
[362323970,1748193043408,-1128.35,0.00019921,2]
[362323972,1748193043417,-420.0,0.00019921,2]
[362323974,1748193043426,-335.2319562,0.00019921,2]
[362323976,1748193043436,-420.0,0.00019921,2]
[362323978,1748193043445,-231.552314,0.00019921,2]
[362323980,1748193043455,-420.0,0.00019921,2]
[362323982,1748193043464,-420.0,0.00019921,2]
[362323984,1748193043473,-420.0,0.00019921,2]
[362323986,1748193043483,-420.0,0.00019921,2]
[362323988,1748193043492,-420.0,0.00019921,2]
[362323990,1748193043501,-1040.44311141,0.00019922,2]
[362323992,1748193043510,-150.0,0.00019922,2]
[362323994,1748193043519,-150.0,0.00019926,2]
[362323996,1748193043529,-150.0,0.00019926,2]
[362323998,1748193043538,-150.0,0.00019929,2]
[362324000,1748193043548,-150.0,0.00019934,2]
[362324002,1748193043557,-150.0,0.00019936,2]
[362324004,1748193043566,-150.0,0.0001994,2]
[362324005,1748193043578,-150.0,0.00019942,2]
[362324007,1748193043587,-150.0,0.00019944,2]
[362324009,1748193043596,-1000.0,0.00019945,2]
[362324012,1748193043607,-150.0,0.00019948,2]
[362324013,1748193043617,-150.0,0.00019952,2]
[362324016,1748193043627,-150.0,0.00019954,2]
[362324017,1748193043636,-150.0,0.00019961,2]
[362324020,1748193043646,-1000.0,0.00019961,2]
[362324022,1748193043657,-1000.0,0.00019961,2]
[362324023,1748193043669,-150.0,0.00019972,2]
[362324026,1748193043678,-18417.0,0.00019973,2]
[362324028,1748193043689,-556.26501701,0.00019973,2]
[362324030,1748193043699,-501.08398706,0.00019973,2]
[362324032,1748193043710,-500.0,0.00019973,2]
[362324034,1748193043719,-283.28156763,0.00019973,2]
[362324036,1748193043730,-500.0,0.00019973,2]
[362324038,1748193043739,-500.0,0.00019973,2]
[362324040,1748193043749,-500.0,0.00019973,2]
[362324042,1748193043758,-500.0,0.00019973,2]
[362324044,1748193043768,-500.0,0.00019973,2]
[362324046,1748193043779,-500.0,0.00019973,2]
[362324048,1748193043788,-150.0,0.00019977,2]
[362324050,1748193043797,-470.0,0.0001998,2]
[362324052,1748193043807,-470.0,0.0001998,2]
[362324054,1748193043817,-470.0,0.0001998,2]
[362324055,1748193043827,-1000.0,0.00019982,2]
[362324057,1748193043837,-614.014,0.00019988,2]
[362324059,1748193043846,-176.66967612,0.00019988,2]
[362324061,1748193043855,-150.0,0.00019989,2]
[362324063,1748193043867,-150.0,0.0001999,2]
[362324065,1748193043877,-150.0,0.00019992,2]
[362324067,1748193043886,-420.0,0.00019993,2]
[362324069,1748193043895,-420.0,0.00019993,2]
[362324071,1748193043906,-438.80942553,0.00019993,2]
[362324073,1748193043918,-420.0,0.00019993,2]
[362324075,1748193043927,-421.34489483,0.00019993,2]
[362324077,1748193043937,-420.0,0.00019993,2]
[362324079,1748193043948,-420.0,0.00019993,2]
[362324081,1748193043958,-473.19761392,0.00019993,2]
[362324083,1748193043967,-420.0,0.00019993,2]
[362324085,1748193043976,-420.0,0.00019993,2]
[362324087,1748193043986,-420.0,0.00019993,2]
[362324089,1748193043995,-420.0,0.00019993,2]
[362324091,1748193044005,-420.0,0.00019993,2]
[362324093,1748193044014,-420.0,0.00019993,2]
[362324095,1748193044024,-420.0,0.00019993,2]
[362324097,1748193044033,-420.0,0.00019993,2]
[362324099,1748193044043,-420.0,0.00019993,2]
[362324101,1748193044052,-420.0,0.00019993,2]
[362324103,1748193044062,-420.0,0.00019993,2]
[362324105,1748193044071,-419.91713567,0.00019993,2]
[362324107,1748193044082,-420.0,0.00019993,2]
[362324109,1748193044091,-420.0,0.00019993,2]
[362324111,1748193044101,-420.0,0.00019993,2]
[362324113,1748193044110,-420.0,0.00019993,2]
[362324115,1748193044120,-420.0,0.00019993,2]
[362324117,1748193044129,-372.88393607,0.00019993,2]
[362324119,1748193044139,-420.0,0.00019993,2]
[362324121,1748193044148,-420.0,0.00019993,2]
[362324123,1748193044157,-420.0,0.00019993,2]
[362324125,1748193044167,-420.0,0.00019993,2]
[362324127,1748193044176,-420.0,0.00019993,2]
[362324129,1748193044187,-304.76383937,0.00019993,2]
[362324131,1748193044196,-420.0,0.00019993,2]
[362324133,1748193044205,-420.0,0.00019993,2]
[362324135,1748193044214,-420.0,0.00019993,2]
[362324137,1748193044224,-250.0,0.00019993,2]
[362324139,1748193044233,-420.0,0.00019993,2]
[362324141,1748193044242,-420.0,0.00019993,2]
[362324143,1748193044252,-420.0,0.00019993,2]
[362324145,1748193044262,-420.0,0.00019993,2]
[362324147,1748193044271,-420.0,0.00019993,2]
[362324149,1748193044281,-420.0,0.00019993,2]
[362324151,1748193044290,-486.75,0.00019993,2]
[362324153,1748193044299,-420.0,0.00019993,2]
[362324155,1748193044308,-477.84855975,0.00019993,2]
[362324157,1748193044318,-420.0,0.00019993,2]
[362324159,1748193044328,-420.0,0.00019993,2]
[362324161,1748193044338,-420.0,0.00019993,2]
[362324163,1748193044347,-420.0,0.00019993,2]
[362324165,1748193044357,-420.0,0.00019993,2]
[362324167,1748193044366,-420.0,0.00019993,2]
[362324169,1748193044376,-420.0,0.00019993,2]
[362324171,1748193044385,-420.0,0.00019993,2]
[362324173,1748193044394,-420.0,0.00019993,2]
[362324175,1748193044403,-420.0,0.00019993,2]
[362324177,1748193044413,-420.0,0.00019993,2]
[362324179,1748193044422,-420.0,0.00019993,2]
[362324181,1748193044431,-551.69951042,0.00019993,2]
[362324183,1748193044441,-420.0,0.00019993,2]
[362324185,1748193044450,-421.03032496,0.00019993,2]
[362324187,1748193044459,-420.0,0.00019993,2]
[362324189,1748193044469,-469.08,0.00019993,2]
[362324191,1748193044479,-420.0,0.00019993,2]
[362324193,1748193044488,-377.00922756,0.00019993,2]
[362324195,1748193044497,-420.0,0.00019993,2]
[362324197,1748193044507,-420.0,0.00019993,2]
[362324199,1748193044516,-435.89,0.00019993,2]
[362324201,1748193044526,-420.0,0.00019993,2]
[362324203,1748193044535,-436.37119863,0.00019993,2]
[362324205,1748193044544,-420.0,0.00019993,2]
[362324207,1748193044554,-420.0,0.00019993,2]
[362324209,1748193044564,-420.0,0.00019993,2]
[362324211,1748193044573,-420.0,0.00019993,2]
[362324213,1748193044583,-472.37584994,0.00019993,2]
[362324215,1748193044594,-420.0,0.00019993,2]
[362324217,1748193044603,-420.0,0.00019993,2]
[362324219,1748193044613,-420.0,0.00019993,2]
[362324221,1748193044623,-500.0,0.00019993,2]
[362324223,1748193044633,-420.0,0.00019993,2]
[362324225,1748193044642,-420.0,0.00019993,2]
[362324227,1748193044652,-420.0,0.00019993,2]
[362324229,1748193044662,-420.0,0.00019993,2]
[362324231,1748193044671,-420.0,0.00019993,2]
[362324234,1748193044681,-420.0,0.00019993,2]
[362324237,1748193044690,-420.0,0.00019993,2]
[362324240,1748193044700,-420.0,0.00019993,2]
[362324243,1748193044710,-420.0,0.00019993,2]
[362324246,1748193044719,-500.26046329,0.00019993,2]
[362324249,1748193044729,-420.0,0.00019993,2]
[362324252,1748193044738,-431.40683145,0.00019993,2]
[362324255,1748193044748,-420.0,0.00019993,2]